bitfinex-derivatives/quotes_SOLF0:USTF0_20251117
["timestamp","ask_amount","ask_price","bid_price","bid_amount"]
[1763388243558,3.14,138.45,138.31,1.11]
[1763388243764,3.14,138.45,138.37,0.05432823]
[1763388244563,3.14,138.43,138.37,0.05432823]
[1763388244754,3.14,138.43,138.39,0.00143123]
[1763388244955,3.14,138.43,138.3,1.11]
[1763388245168,3.14,138.43,138.31,1.16]
[1763388245558,3.14,138.43,138.33,6.5119]
[1763388245756,3.14,138.43,138.31,1.16]
[1763388246058,3.14,138.43,138.27,1.16]
[1763388246059,3.19250306,138.39,138.27,1.16]
[1763388246258,3.19250306,138.39,138.28,1.21]
[1763388246259,3.14,138.39,138.28,1.21]
[1763388246654,21.88953826,138.43,138.33,1.21]
[1763388246862,3.14,138.43,138.33,1.21]
[1763388247262,3.14,138.43,138.37,0.05465812]
[1763388247263,3.19190736,138.39,138.37,0.05465812]
[1763388247565,0.05544117,138.39,138.37,0.05339033]
[1763388247759,3.19544117,138.39,138.37,0.05339033]
[1763388247963,3.19544117,138.39,138.28,1.21]
[1763388247964,3.14,138.38,138.28,1.21]
[1763388248965,0.05494346,138.34,138.32,0.05339643]
[1763388249171,0.05494346,138.34,138.32,1.26339643]
[1763388249662,0.05494346,138.34,138.32,0.05339643]
[1763388250272,0.05494346,138.34,138.32,1.26339643]
[1763388250884,9.4099891,138.43,138.32,1.26339643]
[1763388251164,3.14,138.42,138.32,1.21]
[1763388251362,3.14,138.42,138.28,1.21]
[1763388251363,3.14,138.4,138.28,1.21]
[1763388251963,0.05543383,138.35,138.33,0.04949092]
[1763388252265,0.0541661,138.35,138.33,1.25949092]
[1763388252771,0.0041661,138.35,138.34,1.21]
[1763388252955,0.0041661,138.35,138.34,2.65]
[1763388253568,0.0041661,138.35,138.34,1.21]
[1763388254570,0.0041661,138.35,138.34,2.65]
[1763388254869,0.0041661,138.35,138.34,9.62280981]
[1763388255058,3.14,138.48,138.35,1.16]
[1763388255256,3.14,138.48,138.38,1.16]
[1763388255759,3.14,138.47,138.35,1.16]
[1763388256075,0.04782197,138.42,138.4,0.05160294]
[1763388256263,3.18782197,138.42,138.4,0.05160294]
[1763388256457,0.04782197,138.42,138.4,0.05160294]
[1763388257267,3.18782197,138.42,138.4,0.05160294]
[1763388258470,0.04782197,138.42,138.4,0.05160294]
[1763388258769,3.32782197,138.42,138.4,0.05160294]
[1763388258972,0.04782197,138.42,138.4,0.05160294]
[1763388259658,0.04782197,138.42,138.4,1.21160294]
[1763388259859,0.04782197,138.42,138.4,0.05160294]
[1763388260569,0.04782197,138.42,138.4,1.21160294]
[1763388261073,3.32782197,138.42,138.4,0.05160294]
[1763388262671,0.04782197,138.42,138.4,0.05160294]
[1763388263580,0.04782197,138.42,138.4,1.21160294]
[1763388263776,0.04782197,138.42,138.4,0.05160294]
[1763388264274,3.32782197,138.42,138.4,0.05160294]
[1763388265275,0.04782197,138.42,138.4,0.05160294]
[1763388265777,3.32782197,138.42,138.4,0.05160294]
[1763388266976,0.04782197,138.42,138.4,0.05160294]
[1763388267766,0.04782197,138.42,138.4,1.21160294]
[1763388268175,0.04782197,138.42,138.4,0.05160294]
[1763388268579,0.04782197,138.42,138.4,1.21160294]
[1763388269883,0.04782197,138.42,138.4,0.05160294]
[1763388271579,0.04782197,138.42,138.4,1.21160294]
[1763388272676,0.04782197,138.42,138.4,0.05160294]
[1763388273176,0.04782197,138.42,138.4,1.21160294]
[1763388273383,6.2699891,138.5,138.43,1.11]
[1763388273574,3.14,138.53,138.44,1.11]
[1763388273773,3.14,138.53,138.41,78.0]
[1763388273976,3.14,138.53,138.4,8.08280981]
[1763388274178,3.14,138.51,138.4,1.11]
[1763388274384,3.14,138.51,138.44,0.04752178]
[1763388274591,3.14,138.5,138.37,1.11]
[1763388274775,3.14,138.5,138.43,0.05419267]
[1763388275182,3.14,138.46,138.43,0.05419267]
[1763388276376,3.14,138.5,138.43,0.05419267]
[1763388277186,3.14,138.53,138.43,1.16419267]
[1763388277390,3.14,138.53,138.47,0.05073047]
[1763388278592,3.14,138.52,138.47,0.05073047]
[1763388278786,10.11280981,138.52,138.47,0.05073047]
[1763388279086,3.14,138.51,138.47,0.05073047]
[1763388284199,3.14,138.55,138.47,1.16073047]
[1763388284491,3.14,138.55,138.5,0.05456516]
[1763388285187,3.14,138.54,138.43,1.11]
[1763388285489,3.14,138.54,138.4,1.16]
[1763388286183,12.12644563,138.53,138.4,1.16]
[1763388286385,0.04702623,138.48,138.45,0.04881143]
[1763388286596,0.047462,138.48,138.45,1.20640616]
[1763388287289,0.047462,138.48,138.46,1.16]
[1763388287493,0.047462,138.48,138.45,1.20640616]
[1763388287693,0.047462,138.48,138.45,0.04640616]
[1763388288099,3.187462,138.48,138.45,0.04640616]
[1763388291692,3.187462,138.48,138.37,1.16]
[1763388291896,3.14,138.48,138.37,1.16]
[1763388292195,15.26644563,138.48,138.33,13.28644563]
[1763388292395,15.26644563,138.48,138.33,1.16]
[1763388292396,3.14,138.47,138.33,1.16]
[1763388292796,3.19410144,138.41,138.39,0.04906361]
[1763388292996,3.19057495,138.41,138.39,0.04909494]
[1763388295106,0.05057495,138.41,138.39,0.04909494]
[1763388296488,3.19057495,138.41,138.39,0.04909494]
[1763388297403,0.05057495,138.41,138.39,0.04909494]
[1763388297996,3.26057495,138.41,138.39,0.04909494]
[1763388301017,3.26057495,138.41,138.31,1.17]
[1763388301207,3.21,138.41,138.33,1.17]
[1763388301605,3.21,138.41,138.29,1.17]
[1763388301906,3.21,138.38,138.23,1.17]
[1763388302109,3.21,138.35,138.23,1.17]
[1763388302313,12.12644563,138.36,138.23,1.17]
[1763388302314,12.12644563,138.33,138.23,1.17]
[1763388302497,3.21,138.32,138.18,1.17]
[1763388302808,3.21,138.32,138.19,7.6885]
[1763388303005,0.05228708,138.27,138.24,0.04556189]
[1763388303606,0.05228708,138.27,138.24,1.21556189]
[1763388303809,3.21,138.34,138.25,1.17]
[1763388304016,3.21,138.34,138.24,1.48556189]
[1763388304017,3.21,138.31,138.14,1.17]
[1763388304203,3.21,138.28,138.14,1.17]
[1763388304919,31.6,138.3,138.2,0.04929874]
[1763388304920,3.26053164,138.22,138.2,0.04929874]
[1763388305116,3.25840828,138.22,138.2,0.04926777]
[1763388305411,3.25840828,138.22,138.13,1.17]
[1763388305711,3.21,138.22,138.08,1.21]
[1763388306614,3.26261096,138.16,138.14,0.04792259]
[1763388306810,3.26506437,138.16,138.04,1.21]
[1763388307009,12.12644563,138.2,138.0,1.26]
[1763388307010,3.21,138.13,138.0,1.26]
[1763388307407,3.21,138.13,138.02,1.26]
[1763388308105,0.05174394,138.09,138.06,0.05184395]
[1763388308504,3.26174394,138.09,138.06,0.05184395]
[1763388309415,3.26174394,138.09,138.06,0.00184395]
[1763388309609,3.21,138.07,137.94,1.31]
[1763388310720,3.257443,138.02,137.99,0.04717879]
[1763388310906,3.26339699,138.02,137.99,0.04933657]
[1763388311610,0.05339699,138.02,137.99,0.04933657]
[1763388311817,0.05339699,138.02,137.91,78.04]
[1763388311818,3.26339699,138.02,137.91,78.04]
[1763388312018,3.21,138.02,137.91,78.04]
[1763388312719,3.21,138.02,137.87,1.36]
[1763388313027,3.21,137.95,137.93,0.05204069]
[1763388313323,3.26243517,137.95,137.93,0.05435881]
[1763388314512,3.26243517,137.95,137.85,86.8]
[1763388314714,3.21,137.95,137.83,13.48644563]
[1763388315317,3.21,137.95,137.8,12.12644563]
[1763388315522,3.21,137.88,137.86,0.04853233]
[1763388315813,3.26396908,137.88,137.86,0.05017628]
[1763388316219,0.05396908,137.88,137.86,1.46017628]
[1763388316419,3.26396908,137.88,137.86,0.05017628]
[1763388316715,3.26396908,137.88,137.86,0.00017628]
[1763388317215,3.21,137.87,137.76,12.12644563]
[1763388317425,3.09,137.86,137.74,1.46]
[1763388318115,0.05351915,137.81,137.79,0.0534013]
[1763388318418,3.14534651,137.81,137.79,0.0534013]
[1763388319324,0.05534651,137.81,137.79,0.0534013]
[1763388320717,3.14534651,137.81,137.79,0.0534013]
[1763388322026,3.14534651,137.81,137.73,1.48]
[1763388322220,3.14534651,137.81,137.72,12.12644563]
[1763388322528,3.09,137.81,137.7,1.48]
[1763388323126,0.04963867,137.77,137.74,0.04577563]
[1763388323544,3.09,137.86,137.75,2.94]
[1763388323823,3.09,137.86,137.76,1.48]
[1763388324526,0.04929232,137.82,137.8,0.05490559]
[1763388324828,3.13929232,137.82,137.7,12.12644563]
[1763388325017,3.13929232,137.82,137.64,42.26]
[1763388325018,3.09,137.82,137.68,13.66644563]
[1763388325217,3.09,137.82,137.69,1.54]
[1763388325825,3.09,137.76,137.74,0.04785805]
[1763388326029,0.05457954,137.76,137.74,0.04711627]
[1763388326230,3.14457954,137.76,137.74,0.04711627]
[1763388326529,0.05457954,137.76,137.74,0.04711627]
[1763388326722,0.05457954,137.76,137.74,1.58711627]
[1763388327128,3.09,137.84,137.76,1.54]
[1763388327521,3.09,137.84,137.77,12.12644563]
[1763388328229,0.05509307,137.82,137.79,1.59461771]
[1763388328428,0.05573263,137.82,137.79,1.59241361]
[1763388328933,3.36573263,137.82,137.79,0.05241361]
[1763388330922,0.05573263,137.82,137.79,0.05241361]
[1763388331138,0.05573263,137.82,137.79,1.59241361]
[1763388331632,3.31,137.9,137.81,1.54]
[1763388331831,12.12644563,138.01,137.83,13.66644563]
[1763388332036,3.31,138.0,137.84,1.54]
[1763388332536,3.31,137.97,137.81,1.54]
[1763388332741,0.0479977,137.9,137.88,0.04670293]
[1763388332927,0.04817414,137.9,137.88,0.04583202]
[1763388333228,3.35817414,137.9,137.88,0.04583202]
[1763388334532,0.04817414,137.9,137.88,0.04583202]
[1763388335128,3.35817414,137.9,137.88,0.04583202]
[1763388335335,3.35817414,137.9,137.8,12.12644563]
[1763388335531,3.31,137.9,137.8,13.66644563]
[1763388336032,15.43644563,137.9,137.71,1.54]
[1763388336233,3.31,137.89,137.71,13.66644563]
[1763388336427,3.31,137.81,137.79,0.04723892]
[1763388336732,3.36210901,137.81,137.71,12.12644563]
[1763388336926,3.31,137.81,137.71,12.12644563]
[1763388337735,3.31,137.76,137.75,0.05118862]
[1763388338033,3.31,137.76,137.74,0.0554793]
[1763388338229,3.31,137.76,137.74,0.0469614]
[1763388338230,3.3608542,137.76,137.74,0.0469614]
[1763388338545,3.31,137.74,137.62,12.12644563]
[1763388339039,3.31,137.74,137.6,1.59]
[1763388339231,3.31,137.74,137.59,12.12644563]
[1763388339430,0.0472902,137.68,137.65,0.04848744]
[1763388339632,0.05381966,137.68,137.65,1.64428014]
[1763388339932,3.36381966,137.68,137.65,0.05428014]
[1763388341543,3.36381966,137.68,137.57,1.59]
[1763388341739,3.31,137.68,137.57,1.59]
[1763388342545,0.04578089,137.64,137.61,0.04913744]
[1763388342745,3.31,137.72,137.63,8.6815899]
[1763388342945,3.31,137.72,137.64,1.64]
[1763388343245,3.31,137.76,137.66,7.0415899]
[1763388343541,3.31,137.76,137.67,1.64]
[1763388343736,0.05453369,137.73,137.7,0.05299644]
[1763388344139,0.05453369,137.73,137.7,1.69299644]
[1763388345245,3.36453369,137.73,137.7,0.05299644]
[1763388345945,0.05453369,137.73,137.7,1.69299644]
[1763388346143,0.05453369,137.73,137.7,0.05299644]
[1763388346543,3.36453369,137.73,137.7,0.05299644]
[1763388346844,0.05453369,137.73,137.7,0.05299644]
[1763388347240,3.36453369,137.73,137.7,0.05299644]
[1763388348046,3.36453369,137.73,137.7,1.69299644]
[1763388348047,0.05453369,137.73,137.7,1.69299644]
[1763388348243,0.05453369,137.73,137.7,8.73458634]
[1763388348546,0.05453369,137.73,137.7,1.69299644]
[1763388351142,0.05453369,137.73,137.72,8.6815899]
[1763388351347,3.31,137.83,137.72,8.6815899]
[1763388351547,3.31,137.83,137.72,1.64]
[1763388352040,3.31,137.83,137.73,7.0415899]
[1763388352243,0.05052645,137.79,137.77,0.05361739]
[1763388352744,3.36052645,137.79,137.77,0.05361739]
[1763388353048,3.36052645,137.79,137.69,7.0415899]
[1763388353049,3.36052645,137.79,137.69,8.6815899]
[1763388353239,3.31,137.79,137.69,8.6815899]
[1763388354045,0.05291778,137.75,137.73,1.69175819]
[1763388354439,3.31,137.83,137.74,1.64]
[1763388354749,3.31,137.83,137.75,1.64]
[1763388355343,3.31,137.87,137.77,7.0415899]
[1763388355548,0.05390988,137.83,137.81,1.69348357]
[1763388356242,0.05390988,137.83,137.81,0.05348357]
[1763388356243,3.36390988,137.83,137.81,0.05348357]
[1763388356443,3.36390988,137.83,137.74,1.64]
[1763388356647,3.31,137.83,137.73,7.0415899]
[1763388357550,0.05304403,137.79,137.77,0.04644187]
[1763388360140,0.05304403,137.79,137.77,1.68644187]
[1763388360341,3.31304403,137.79,137.77,0.04644187]
[1763388361650,3.31304403,137.79,137.69,8.6815899]
[1763388361846,3.26,137.79,137.69,8.6815899]
[1763388362041,3.26,137.79,137.66,8.6815899]
[1763388362343,3.26,137.78,137.66,7.0415899]
[1763388362647,3.26,137.72,137.63,8.6815899]
[1763388362949,3.26,137.71,137.59,8.7315899]
[1763388363650,0.05346205,137.66,137.64,0.05045004]
[1763388363955,3.31568844,137.66,137.64,0.05045004]
[1763388364251,3.31568844,137.66,137.53,1.69]
[1763388364252,3.26,137.64,137.53,1.69]
[1763388365053,0.04636162,137.6,137.53,1.69]
[1763388365452,0.04636162,137.6,137.53,8.2395]
[1763388365752,0.04636162,137.6,137.54,1.69]
[1763388366257,3.26,137.72,137.6,1.69]
[1763388366454,12.9314599,137.77,137.65,1.69]
[1763388366455,3.26,137.77,137.65,1.69]
[1763388366643,3.26,137.77,137.66,7.0415899]
[1763388366852,3.26,137.77,137.67,1.69]
[1763388367155,0.05357154,137.73,137.71,0.0544434]
[1763388368768,3.31357154,137.73,137.71,0.0544434]
[1763388368969,3.26,137.71,137.62,1.69]
[1763388369169,3.26,137.75,137.62,1.69]
[1763388369369,3.26,137.75,137.65,1.69]
[1763388369864,0.04882976,137.71,137.68,1.69]
[1763388370070,0.04654639,137.71,137.68,1.69]
[1763388371669,0.04654639,137.71,137.62,78.32]
[1763388371670,0.04654639,137.71,137.62,1.69]
[1763388371864,0.04788726,137.68,137.62,1.69]
[1763388372472,0.04788726,137.68,137.61,7.0415899]
[1763388372473,0.04788726,137.68,137.65,1.69]
[1763388373174,0.04788726,137.68,137.6,1.69]
[1763388373468,3.30953875,137.65,137.58,7.0415899]
[1763388373675,3.30953875,137.65,137.56,1.69]
[1763388373973,0.04966633,137.62,137.56,1.69]
[1763388377473,0.04966633,137.62,137.56,8.2382]
[1763388377872,0.04966633,137.62,137.57,1.69]
[1763388379470,3.24,137.71,137.62,1.7]
[1763388379676,3.24,137.71,137.6,1.7]
[1763388380273,0.0481495,137.67,137.64,0.05350607]
[1763388380480,3.24,137.66,137.56,1.7]
[1763388380772,7.0415899,137.64,137.52,8.7415899]
[1763388380978,3.24,137.63,137.52,1.7]
[1763388381375,3.28681786,137.59,137.49,94.2215899]
[1763388381584,0.05495162,137.55,137.49,87.18]
[1763388381778,0.05495162,137.55,137.5,1.7]
[1763388382070,3.24,137.63,137.53,1.7]
[1763388382373,3.24,137.66,137.56,8.2483]
[1763388383176,0.05152992,137.62,137.6,0.05243069]
[1763388383775,3.24,137.61,137.6,0.05243069]
[1763388383972,4.7,137.61,137.51,1.7]
[1763388384171,3.24,137.61,137.51,1.7]
[1763388384869,0.04660197,137.57,137.51,1.7]
[1763388386376,3.28660197,137.57,137.48,7.0415899]
[1763388386573,0.05421821,137.54,137.46,8.7415899]
[1763388387273,0.05421821,137.54,137.47,1.7]
[1763388387480,0.05421821,137.54,137.5,1.7]
[1763388387679,0.04716183,137.53,137.5,1.7]
[1763388387867,0.05405752,137.53,137.5,1.7]
[1763388388279,0.05405752,137.53,137.51,1.7]
[1763388388673,3.32,137.61,137.51,8.7415899]
[1763388389680,3.32,137.56,137.55,0.05339488]
[1763388389880,0.04592302,137.57,137.54,0.05160123]
[1763388390081,0.04684161,137.57,137.54,0.04766799]
[1763388390281,3.36684161,137.57,137.54,0.04766799]
[1763388390684,0.04684161,137.57,137.54,0.04766799]
[1763388392078,0.04684161,137.57,137.54,1.74766799]
[1763388392885,10.3615899,137.65,137.54,1.74766799]
[1763388392886,3.32,137.65,137.54,1.74766799]
[1763388393085,3.32,137.65,137.57,1.7]
[1763388393288,3.32,137.69,137.6,1.7]
[1763388393493,3.32,137.74,137.62,7.0415899]
[1763388393788,3.32,137.74,137.6,8.2464]
[1763388393982,3.37495311,137.68,137.66,0.04834462]
[1763388394184,0.0463642,137.68,137.66,0.04752848]
[1763388394477,3.3663642,137.68,137.66,0.04752848]
[1763388395684,4.78,137.67,137.58,7.0415899]
[1763388395893,3.32,137.67,137.58,8.7415899]
[1763388396489,3.32,137.67,137.54,1.7]
[1763388396684,0.05568517,137.62,137.59,0.054804]
[1763388396884,3.37568517,137.62,137.59,0.054804]
[1763388397086,3.32,137.61,137.52,7.0415899]
[1763388397592,3.32,137.61,137.51,7.0415899]
[1763388397888,3.32,137.61,137.5,1.7]
[1763388398093,0.05338304,137.57,137.5,1.7]
[1763388399080,0.05338304,137.57,137.48,8.7415899]
[1763388399289,0.05396523,137.54,137.49,1.7]
[1763388400885,3.37396523,137.54,137.45,1.7]
[1763388401095,0.04669496,137.51,137.45,1.7]
[1763388402601,0.04669496,137.51,137.44,7.0415899]
[1763388403101,0.04669496,137.51,137.43,7.0415899]
[1763388403298,3.37057401,137.48,137.38,1.7]
[1763388403501,0.0517419,137.44,137.39,1.7]
[1763388404296,0.0517419,137.44,137.39,8.2563]
[1763388404503,0.0517419,137.44,137.4,1.7]
[1763388405602,0.0517419,137.44,137.36,1.7]
[1763388405796,3.37474629,137.41,137.32,1.7]
[1763388405998,0.04882157,137.38,137.32,1.7]
[1763388406710,0.04882157,137.38,137.29,12.30324194]
[1763388406903,0.04658888,137.35,137.29,14.00324194]
[1763388407098,0.04658888,137.35,137.29,1.7]
[1763388407406,0.04658888,137.35,137.26,14.00324194]
[1763388407591,0.04903463,137.32,137.27,1.7]
[1763388408204,0.04903463,137.32,137.29,12.30324194]
[1763388409304,0.04903463,137.32,137.26,14.00324194]
[1763388409506,0.00393372,137.3,137.29,14.00324194]
[1763388409697,3.32,137.41,137.29,14.00324194]
[1763388409907,3.32,137.41,137.29,12.30324194]
[1763388410097,3.32,137.4,137.25,12.30324194]
[1763388410300,3.32,137.4,137.25,13.95324194]
[1763388410602,3.32,137.4,137.21,87.3]
[1763388410603,0.04649624,137.34,137.31,1.69721247]
[1763388410809,0.04988831,137.34,137.31,0.04635176]
[1763388411105,3.36988831,137.34,137.31,0.04635176]
[1763388412206,0.04988831,137.34,137.31,0.04635176]
[1763388413410,3.32,137.33,137.31,0.04635176]
[1763388414603,0.04988831,137.34,137.31,0.04635176]
[1763388416511,3.32,137.42,137.32,1.65]
[1763388416816,3.32,137.42,137.34,12.30324194]
[1763388417418,0.04604955,137.39,137.37,0.05496602]
[1763388418921,3.11,137.38,137.37,0.05496602]
[1763388419526,0.04604955,137.39,137.37,0.05496602]
[1763388420227,3.11,137.53,137.38,1.62]
[1763388421223,35.32,137.54,137.44,0.04877487]
[1763388421224,3.11,137.46,137.44,0.04877487]
[1763388421537,3.16405447,137.46,137.34,20.48194194]
[1763388421824,3.11,137.46,137.34,20.48194194]
[1763388422330,3.11,137.46,137.34,13.92324194]
[1763388422534,3.11,137.4,137.39,0.04778437]
[1763388422725,3.11,137.4,137.38,0.05233544]
[1763388423224,1.46,137.39,137.25,1.67]
[1763388423528,3.11,137.38,137.25,1.67]
[1763388423926,3.11,137.38,137.22,6.5644]
[1763388424127,12.30324194,137.48,137.18,2.03003734]
[1763388424128,0.04787912,137.31,137.3,1.67]
[1763388424427,3.11,137.4,137.3,1.67]
[1763388424628,3.11,137.46,137.31,1.67]
[1763388424930,3.11,137.46,137.34,8.2287]
[1763388425129,47.65,137.5,137.35,1.67]
[1763388425326,0.0527247,137.44,137.42,1.67]
[1763388425631,0.04950106,137.44,137.42,0.04656492]
[1763388425824,0.04950106,137.44,137.42,1.71656492]
[1763388426224,3.15950106,137.44,137.42,0.04656492]
[1763388426620,0.04950106,137.44,137.42,1.71656492]
[1763388426831,3.11,137.53,137.43,1.67]
[1763388427331,3.11,137.53,137.39,1.67]
[1763388427529,3.11,137.51,137.39,1.67]
[1763388427723,3.11,137.45,137.44,0.05192684]
[1763388427931,3.11,137.45,137.35,1.67]
[1763388428424,3.11,137.51,137.35,1.67]
[1763388428624,3.11,137.51,137.38,1.67]
[1763388428926,3.11,137.45,137.43,0.04890707]
[1763388429122,3.15894325,137.45,137.38,1.67]
[1763388429327,3.15894325,137.45,137.35,1.67]
[1763388429629,3.11,137.45,137.35,1.67]
[1763388430226,0.04832104,137.41,137.39,0.04900919]
[1763388430630,3.15832104,137.41,137.39,0.04900919]
[1763388430835,3.11,137.39,137.28,1.67]
[1763388431728,0.05064457,137.35,137.28,1.67]
[1763388432129,3.16064457,137.35,137.24,1.67]
[1763388432324,0.04660225,137.31,137.24,1.67]
[1763388432922,0.04660225,137.31,137.26,1.67]
[1763388433232,3.15660225,137.31,137.22,1.67]
[1763388433531,3.15660225,137.31,137.19,78.5]
[1763388433532,0.05372054,137.28,137.19,1.67]
[1763388433729,0.04782885,137.25,137.19,1.67]
[1763388435332,0.04782885,137.25,137.18,3.70003734]
[1763388435635,0.04782885,137.25,137.19,1.67]
[1763388435826,0.04782885,137.25,137.2,1.67]
[1763388436030,3.23782885,137.25,137.18,2.03003734]
[1763388439541,3.19,137.24,137.18,2.03003734]
[1763388440942,3.19,137.22,137.08,1.7]
[1763388441142,0.0505979,137.16,137.08,1.7]
[1763388441342,3.2405979,137.16,137.01,1.7]
[1763388441543,3.19,137.09,136.97,1.7]
[1763388441746,0.05500225,137.04,136.97,1.7]
[1763388441935,8.08711955,137.13,136.99,0.05288782]
[1763388442240,3.19,137.12,137.0,1.7]
[1763388442443,3.19,137.07,136.9,1.7]
[1763388442639,3.19,137.01,136.89,2.03003734]
[1763388442845,12.30324194,136.99,136.89,2.03003734]
[1763388443145,3.24322766,136.95,136.93,0.0498361]
[1763388443639,0.05322766,136.95,136.93,0.0498361]
[1763388443834,3.24322766,136.95,136.93,0.0498361]
[1763388444235,0.05322766,136.95,136.93,0.0498361]
[1763388444445,5.08317362,137.02,136.93,1.7498361]
[1763388444646,3.19,137.03,136.93,1.7]
[1763388445442,0.04893302,136.99,136.97,0.0478897]
[1763388445743,0.05092386,136.99,136.98,1.7]
[1763388445941,3.19,137.07,136.99,1.7]
[1763388446138,5.07854632,137.11,136.99,1.7]
[1763388446442,3.19,137.12,137.0,1.7]
[1763388446932,3.24101832,137.07,137.05,0.05527921]
[1763388447137,3.19,137.07,136.91,1.7]
[1763388447333,3.19,137.07,136.9,12.30324194]
[1763388447334,6.35912856,137.17,137.04,1.71]
[1763388447535,3.26,137.25,137.1,1.71]
[1763388447945,3.26,137.26,137.13,1.71]
[1763388448246,5.08174165,137.29,137.17,1.71]
[1763388448548,3.26,137.3,137.15,12.30324194]
[1763388448845,3.26,137.29,137.13,1.66]
[1763388449234,0.05555456,137.22,137.21,1.66]
[1763388449443,3.31067168,137.23,137.2,0.05428069]
[1763388449651,3.31341435,137.23,137.2,0.04907228]
[1763388449856,0.05341435,137.23,137.2,0.04907228]
[1763388450649,0.05341435,137.23,137.2,1.70907228]
[1763388450851,3.26,137.34,137.22,1.66]
[1763388451543,5.08174165,137.35,137.22,1.66]
[1763388451737,3.26,137.38,137.27,0.05248041]
[1763388451942,3.26,137.38,137.28,1.66]
[1763388452145,0.05037186,137.34,137.31,1.70843457]
[1763388452334,3.26,137.43,137.31,1.66]
[1763388453336,3.30918719,137.38,137.36,0.05419111]
[1763388453538,0.04879688,137.38,137.36,0.04991227]
[1763388453744,5.09949176,137.45,137.36,1.70991227]
[1763388453951,3.26,137.47,137.36,1.70991227]
[1763388453952,3.26,137.47,137.36,1.66]
[1763388454343,3.26,137.52,137.36,1.66]
[1763388454855,5.09949176,137.53,137.43,0.0486182]
[1763388454856,3.30625464,137.45,137.43,0.0486182]
[1763388455158,0.04997546,137.45,137.43,0.04650271]
[1763388455452,4.72,137.44,137.31,1.66]
[1763388455648,3.26,137.43,137.31,1.66]
[1763388456442,0.05130974,137.38,137.36,1.70771448]
[1763388456648,0.05148283,137.38,137.36,1.70614384]
[1763388456848,3.26,137.48,137.37,3.12]
[1763388457049,3.26,137.48,137.38,1.66]
[1763388457251,8.35949176,137.52,137.38,1.66]
[1763388457550,3.26,137.52,137.38,1.66]
[1763388457947,0.04606852,137.46,137.44,0.04686284]
[1763388458253,0.05542533,137.46,137.44,0.04686284]
[1763388458454,3.31542533,137.46,137.44,0.04686284]
[1763388459149,0.05542533,137.46,137.44,0.04686284]
[1763388459351,3.31542533,137.46,137.44,0.04686284]
[1763388459552,0.05542533,137.46,137.44,0.04686284]
[1763388459757,0.05542533,137.46,137.44,1.70686284]
[1763388460248,0.05542533,137.46,137.44,0.04686284]
[1763388460847,3.31542533,137.46,137.44,0.04686284]
[1763388461047,0.05542533,137.46,137.44,0.04686284]
[1763388462852,3.31542533,137.46,137.44,0.04686284]
[1763388463857,3.26,137.45,137.36,1.66]
[1763388464960,0.04602645,137.42,137.39,1.70682542]
[1763388465156,0.05203999,137.42,137.39,1.7142862]
[1763388466559,3.26,137.49,137.39,1.7142862]
[1763388466753,3.26,137.49,137.39,1.66]
[1763388467261,3.26,137.54,137.41,1.66]
[1763388467462,5.0879179,137.55,137.36,18.98169004]
[1763388467463,0.04976459,137.49,137.46,0.05466946]
[1763388467658,3.26,137.49,137.37,1.66]
[1763388468163,3.26,137.49,137.33,1.66]
[1763388468361,3.26,137.48,137.33,1.66]
[1763388468567,0.04740198,137.42,137.39,0.05231059]
[1763388468760,0.04930358,137.42,137.39,0.05190275]
[1763388469063,0.04930358,137.42,137.39,1.71190275]
[1763388469566,0.04930358,137.42,137.39,3.17190275]
[1763388469762,3.26,137.52,137.4,1.66]
[1763388470866,0.04619774,137.47,137.45,0.04918584]
[1763388471061,0.05209937,137.47,137.45,0.04918584]
[1763388471267,3.31209937,137.47,137.45,0.04918584]
[1763388471569,0.05209937,137.47,137.45,0.04918584]